[Event "Botvinnik Cup 2018"]
[Site "Moscow"]
[Date "2018.08.14"]
[Round "7"]
[White "Egin, Vladimir"]
[Black "Batyrowa, Merjen"]
[Result "1-0"]
[ECO "C08"]
[WhiteElo "2317"]
[BlackElo "1555"]
[Annotator "NA"]
[PlyCount "85"]
[EventDate "2018.08.10"]
[EventCountry "RUS"]
[SourceTitle "playchess.com"]
[Source "ChessBase"]
[SourceQuality "1"]
[TimeControl "5400+30"]

1. e4 {[%emt 0:00:00]} e6 {[%emt 0:00:00]} 2. d4 d5 {[%emt 0:00:00]} 3. Nd2 {[%emt 0:00:05]} c5 {[%emt 0:00:03]} 4. exd5 {[%emt 0:00:06]} exd5 {[%emt 0:00:05]} 5. Ngf3 Nf6 6. Bb5+ {[%emt 0:00:09]} Bd7 {[%emt 0:00:22]} 7. Bxd7+ {[%emt 0:00:03]} Nbxd7 {[%emt 0:00:21]} 8. O-O Be7 9. dxc5 {[%emt 0:00:48]} Nxc5 {[%emt 0:01:02]} 10. Re1 {[%emt 0:00:04]} O-O {[%emt 0:00:26]} 11. Nf1 {[%emt 0:00:12] C08: French Tarrasch: 3...c5 4 exd5 exd5 sidelines} Qc7 {[%emt 0:05:45]} (11... Re8 12. Be3 Qd7 13. c3 a5 14. Bd4 Rac8 15. Ne3 Nfe4 16. Ne5 Qd8 17. Qh5 g6 18. Qf3 f5 19. Nxf5 gxf5 20. Qxf5 {½-½ (91) Rublevsky,S (2683)-Savchenko,B (2585) Sochi 2017}) 12. Be3 {[%emt 0:00:16]} Rfe8 {[%emt 0:06:50]} 13. c3 {[%emt 0:00:13]} Rad8 {[%emt 0:01:46]} 14. Qc2 {[%emt 0:00:32] [#]} a6 $146 {[%emt 0:04:35]} ({Predecessor:} 14... Nce4 15. Bd4 Bd6 16. Ne3 Bf4 17. g3 Bxe3 18. Rxe3 Re6 {½-½ (61) Kobalia,M (2505)-Dolmatov,S (2575) St Petersburg 1998}) 15. a4 {[%emt 0:01:49]} Nce4 {[%emt 0:07:57]} 16. Bd4 {[%emt 0:02:03]} Bc5 {[%emt 0:03:51]} 17. Ne3 {[%emt 0:01:46]} Bxd4 {[%emt 0:08:45]} 18. Nxd4 {[%emt 0:00:10]} g6 {[%emt 0:01:39]} 19. Rad1 {[%emt 0:00:31]} Nd6 {[%emt 0:04:58]} 20. f3 {[%emt 0:11:10]} Nc4 {[%emt 0:01:50]} 21. Nf1 {[%emt 0:00:18]} Rxe1 {[%emt 0:09:21]} 22. Rxe1 {[%emt 0:00:03]} Re8 {[%emt 0:00:15]} 23. Rxe8+ {[%emt 0:01:13]} Nxe8 {[%emt 0:00:04]} 24. b3 {[%emt 0:00:17]} Nb6 {[%emt 0:02:42]} 25. Qd2 {[%emt 0:00:54]} Qe5 {[%emt 0:03:32]} 26. Qe3 {[%emt 0:12:23]} Qxe3+ {[%emt 0:01:21]} 27. Nxe3 {[%emt 0:00:51]} Kf8 {[%emt 0:01:09]} 28. a5 {[%emt 0:00:19]} Nd7 {[%emt 0:05:18]} 29. Nxd5 {[%emt 0:00:06]} f5 {[%emt 0:02:24]} 30. Ne6+ {[%emt 0:16:23]} Kg8 {[%emt 0:01:48]} 31. Kf2 {[%emt 0:16:23]} Nd6 {[%emt 0:09:08]} 32. Ke3 {[%emt 0:02:32]} Kf7 {[%emt 0:04:55]} 33. Ng5+ {[%emt 0:00:26]} Kg7 {[%emt 0:00:10]} 34. b4 {[%emt 0:01:26]} h6 {[%emt 0:00:36]} 35. Ne6+ {[%emt 0:00:06]} Kf7 {[%emt 0:00:05]} 36. Nec7 {[%emt 0:00:26]} Ne8 {[%emt 0:02:15]} (36... g5 {was worth a try.} 37. f4 Nb8) 37. Nxe8 {[%emt 0:00:23]} Kxe8 {[%emt 0:00:00]} 38. Kd4 {[%emt 0:00:10]} Kf7 {[%emt 0:00:48]} 39. c4 {[%emt 0:01:09]} Ke6 {[%emt 0:00:36]} 40. Nf4+ {[%emt 0:00:58]} Kf6 $18 {[%emt 0:00:14]} 41. Kd5 {[%emt 0:00:44]} g5 {[%emt 0:00:06]} 42. Nd3 {[%emt 0:00:12]} Ke7 {[%emt 0:00:41]} 43. Nc5 {[%emt 0:00:26]} 1-0

[Event "Botvinnik Cup 2018"]
[Site "Moscow"]
[Date "2018.08.14"]
[Round "7"]
[White "Skatchkov, Valery"]
[Black "Komliakov, Viktor"]
[Result "0-1"]
[ECO "B07"]
[WhiteElo "2305"]
[BlackElo "2366"]
[Annotator "NA"]
[PlyCount "50"]
[EventDate "2018.08.10"]
[EventCountry "RUS"]
[SourceTitle "playchess.com"]
[Source "ChessBase"]
[SourceQuality "1"]
[TimeControl "5400+30"]

1. d4 {[%emt 0:00:00]} d6 {[%emt 0:00:56]} 2. e4 {[%emt 0:00:00]} Nf6 {[%emt 0:00:11]} 3. Nc3 {[%emt 0:00:00]} c6 {[%emt 0:00:29]} 4. Nf3 {[%emt 0:07:24]} Bg4 {[%emt 0:00:23]} 5. h3 {[%emt 0:00:26]} Bh5 {[%emt 0:00:10]} 6. Bd3 {[%emt 0:06:15]} e6 {[%emt 0:00:12]} 7. Bf4 {[%emt 0:04:29] B07: Pirc Defence: Miscellaneous Systems} (7. g4 Bg6 8. g5 Nfd7 9. Nh4 d5 10. Nxg6 hxg6 11. Qg4 Qb6 12. Ne2 Na6 13. c3 dxe4 14. Bxe4 Nc7 {½-½ (54) Leko,P (2732)-Mamedyarov,S (2764) Tashkent 2012 CBM 152 [Mekhitarian,K]}) 7... d5 {[%emt 0:03:41]} 8. e5 {[%emt 0:00:53]} Nfd7 {[%emt 0:01:36]} 9. g4 {[%emt 0:00:39]} Bg6 {[%emt 0:00:06]} 10. h4 {[%emt 0:01:59]} a6 $146 {[%emt 0:08:45]} ({Predecessor:} 10... c5 11. h5 Bxd3 12. Qxd3 Nc6 13. O-O-O cxd4 14. Nxd4 {0-1 (35) Ghatti,S (2154)-Ivanov,A (2515) Asheville 2016}) 11. a3 {[%emt 0:02:49]} c5 {[%emt 0:03:16]} 12. dxc5 {[%emt 0:03:39]} Bxc5 {[%emt 0:08:34]} 13. b4 {[%emt 0:00:02]} Be7 {[%emt 0:01:03]} 14. Bxg6 {[%emt 0:01:47]} hxg6 {[%emt 0:00:04]} 15. h5 {[%emt 0:00:07]} Nc6 {[%emt 0:01:06]} 16. Qd2 {[%emt 0:03:44]} Nb6 {[%emt 0:01:11]} 17. Kf1 {[%emt 0:01:55]} Rc8 {[%emt 0:02:53]} 18. Kg2 {[%emt 0:00:43]} gxh5 {[%emt 0:00:45]} 19. b5 {[%emt 0:02:22]} Na5 {[%emt 0:00:05]} 20. bxa6 {[%emt 0:01:10]} bxa6 {[%emt 0:00:01]} 21. Qd3 {[%emt 0:00:12]} Nbc4 {[%emt 0:01:06]} 22. gxh5 {[%emt 0:00:34]} Qc7 {[%emt 0:06:52]} 23. Ne2 {[%emt 0:00:57]} Nb7 $17 {[%emt 0:00:54]} 24. Ng3 {[%emt 0:00:55]} Nc5 {[%emt 0:00:53]} 25. Nd4 {[%emt 0:00:25]} Nxd3 {[%emt 0:00:33]} 0-1

[Event "Botvinnik Cup 2018"]
[Site "Moscow"]
[Date "2018.08.14"]
[Round "7"]
[White "Kirillov, Dmitry"]
[Black "Komliakov, Viktor"]
[Result "0-1"]
[ECO "B06"]
[WhiteElo "2209"]
[BlackElo "2366"]
[Annotator "NA"]
[PlyCount "64"]
[EventDate "2018.08.10"]
[EventCountry "RUS"]
[SourceTitle "playchess.com"]
[Source "ChessBase"]
[SourceQuality "1"]
[TimeControl "5400+30"]

1. e4 {[%emt 0:00:00]} g6 {[%emt 0:00:06]} 2. d4 {[%emt 0:00:00]} Bg7 {[%emt 0:00:24]} 3. Nc3 {[%emt 0:00:24]} c6 {[%emt 0:00:36]} 4. Be3 {[%emt 0:01:10]} d5 {[%emt 0:00:07]} 5. e5 {[%emt 0:00:06]} f6 {[%emt 0:00:10]} 6. f4 {[%emt 0:01:03]} Nh6 {[%emt 0:00:06]} 7. Nf3 {[%emt 0:00:59]} Bg4 {[%emt 0:00:07]} 8. h3 {[%emt 0:01:01]} Bxf3 {[%emt 0:00:06]} 9. Qxf3 {[%emt 0:00:04]} O-O {[%emt 0:00:09]} 10. Qe2 {[%emt 0:04:30] B15: Caro-Kann: 3 Nc3: 3...g6 and 3...dxe4 4 Nxe4 Nf6 5 Nxf6+ exf6} Nf5 {[%emt 0:01:44]} (10... fxe5 11. dxe5 e6 12. O-O-O Nd7 13. h4 c5 14. Nb5 Nf5 15. Bf2 a6 16. Nc3 b5 17. g3 Qc7 {1-0 (51) Hracek,Z (2612)-Hamitevici,V (2487) Minsk 2017}) 11. Bf2 {[%emt 0:00:50]} fxe5 {[%emt 0:00:05]} 12. dxe5 {[%emt 0:01:34]} e6 {[%emt 0:00:14]} 13. O-O-O {[%emt 0:04:14]} Nd7 {[%emt 0:05:32]} 14. h4 {[%emt 0:01:33]} c5 $146 {[%emt 0:37:50]} ({Predecessor:} 14... Bh6 15. g3 b5 16. h5 g5 17. Qg4 Kh8 {½-½ (63) Fussnecker,M (1999)-Benninger,R (2154) Frankfurt 2011}) 15. h5 {[%emt 0:01:51]} g5 {[%emt 0:00:29]} 16. Nxd5 {[%emt 0:28:40]} exd5 {[%emt 0:00:32]} 17. Rxd5 {[%emt 0:00:07]} gxf4 {[%emt 0:11:07]} 18. e6 {[%emt 0:02:24]} Qf6 {[%emt 0:01:40]} 19. exd7 $2 {[%emt 0:09:41]} (19. c3 Nb6 20. Rxc5) 19... Qxb2+ {[%emt 0:00:08]} 20. Kd2 {[%emt 0:01:41]} Qc3+ {[%emt 0:09:25]} 21. Kd1 {[%emt 0:00:38]} Ne3+ {[%emt 0:00:42]} 22. Bxe3 {[%emt 0:00:04]} fxe3 {[%emt 0:00:01]} 23. Qc4 {[%emt 0:00:19]} Qa1+ {[%emt 0:04:53]} 24. Ke2 {[%emt 0:00:04]} Kh8 {[%emt 0:00:45]} 25. Qh4 {[%emt 0:05:02]} Qxa2 {[%emt 0:06:33]} 26. h6 {[%emt 0:05:02]} Qxc2+ {[%emt 0:02:17]} 27. Kxe3 {[%emt 0:00:06]} Qc1+ {[%emt 0:01:01]} 28. Ke2 {[%emt 0:02:55]} Bf6 $19 {[%emt 0:08:37]} 29. Qxf6+ {[%emt 0:04:50]} Rxf6 {[%emt 0:00:07]} 30. d8=Q+ {[%emt 0:00:03]} Rf8 {[%emt 0:00:02]} 31. Qd6 {[%emt 0:00:39]} Rae8+ {[%emt 0:00:32]} 32. Re5 {[%emt 0:00:06]} Qb2+ {[%emt 0:00:11]} 0-1

[Event "Botvinnik Cup 2018"]
[Site "Moscow"]
[Date "2018.08.14"]
[Round "7"]
[White "Nurmanova, Alua"]
[Black "Sevdimaliyev, Urfan"]
[Result "1/2-1/2"]
[ECO "B33"]
[WhiteElo "1825"]
[BlackElo "2388"]
[Annotator "NA"]
[PlyCount "106"]
[EventDate "2018.08.10"]
[EventCountry "RUS"]
[SourceTitle "playchess.com"]
[Source "ChessBase"]
[SourceQuality "1"]
[TimeControl "5400+30"]

1. e4 {[%emt 0:00:00]} c5 {[%emt 0:00:00]} 2. Nf3 {[%emt 0:00:00]} Nc6 {[%emt 0:00:00]} 3. d4 {[%emt 0:00:00]} cxd4 {[%emt 0:00:00]} 4. Nxd4 {[%emt 0:00:00]} Nf6 {[%emt 0:00:11]} 5. Nc3 {[%emt 0:00:00]} e5 {[%emt 0:00:04]} 6. Ndb5 {[%emt 0:00:03]} d6 {[%emt 0:00:08]} 7. Bg5 {[%emt 0:00:06]} a6 {[%emt 0:00:02]} 8. Na3 {[%emt 0:00:09]} b5 {[%emt 0:00:10]} 9. Nd5 {[%emt 0:00:09]} Be7 {[%emt 0:00:09]} 10. Bxf6 {[%emt 0:00:08]} Bxf6 {[%emt 0:00:29]} 11. c3 {[%emt 0:00:08]} Bg5 {[%emt 0:00:08]} 12. Nc2 {[%emt 0:00:57]} Ne7 {[%emt 0:00:12]} 13. a4 {[%emt 0:13:11] B33: Sicilian: Pelikan and Sveshnikov Variations} (13. h4 Bh6 14. a4 bxa4 15. Ncb4 O-O 16. Qxa4 a5 17. Bb5 Nxd5 18. Nxd5 Be6 19. Bc6 Rb8 20. b4 axb4 21. cxb4 {½-½ (31) Kovalev,V (2639)-Zhigalko,S (2620) Minsk 2018}) 13... bxa4 {[%emt 0:02:52]} 14. Ncb4 {[%emt 0:01:33]} O-O {[%emt 0:01:26]} 15. Rxa4 {[%emt 0:02:43]} a5 {[%emt 0:04:23]} 16. Nxe7+ {[%emt 0:03:44]} Qxe7 {[%emt 0:05:03]} 17. Nd5 {[%emt 0:02:45]} Qb7 {[%emt 0:00:29]} 18. b3 {[%emt 0:21:27]} Bd7 {[%emt 0:08:43]} 19. Ra2 {[%emt 0:09:39]} f5 {[%emt 0:06:45]} 20. Bc4 {[%emt 0:14:07]} Kh8 {[%emt 0:00:08]} 21. exf5 {[%emt 0:05:03]} Rxf5 {[%emt 0:01:00]} 22. O-O $146 {[%emt 0:00:41]} g6 {[%emt 0:06:57]} 23. Qa1 {[%emt 0:08:31]} Bd8 {[%emt 0:00:36]} 24. Rd1 {[%emt 0:05:12]} Rc8 {[%emt 0:03:38]} 25. Ne3 {[%emt 0:02:31]} Rf6 {[%emt 0:01:08]} 26. Bd5 {[%emt 0:01:23]} Qb5 {[%emt 0:18:25]} 27. Bc4 {[%emt 0:05:25]} Qb8 {[%emt 0:01:03]} 28. Rad2 {[%emt 0:01:45]} Rc5 {[%emt 0:05:19]} 29. Nd5 {[%emt 0:01:14]} (29. b4 $16 axb4 30. cxb4) 29... Rf8 {[%emt 0:05:16]} 30. Ne3 {[%emt 0:00:31]} Rc6 {[%emt 0:01:42]} 31. Bd5 {[%emt 0:01:19]} Rc8 {[%emt 0:12:50]} 32. Nc4 {[%emt 0:00:52]} Rc5 {[%emt 0:03:42]} 33. Nxd6 {[%emt 0:00:38]} Qxd6 {[%emt 0:00:57]} 34. Bf3 {[%emt 0:00:09]} Qf6 {[%emt 0:02:18]} 35. Rxd7 {[%emt 0:00:10]} e4 {[%emt 0:00:16]} 36. R1d6 {[%emt 0:00:47]} Qf4 {[%emt 0:05:03]} 37. Rxd8 exf3 {[%emt 0:02:31]} 38. c4+ {[%emt 0:01:01]} Kg8 {[%emt 0:00:42]} 39. Qd1 {[%emt 0:00:41]} Rcf5 {[%emt 0:00:47]} 40. Rxf8+ {[%emt 0:00:25]} Rxf8 {[%emt 0:00:25]} 41. Qd5+ {[%emt 0:00:30]} Kh8 {[%emt 0:00:42]} 42. Qd4+ {[%emt 0:00:36]} Qxd4 {[%emt 0:00:06]} 43. Rxd4 {[%emt 0:00:03]} Rb8 {[%emt 0:00:14]} 44. gxf3 {[%emt 0:00:48]} Rxb3 {[%emt 0:00:03]} 45. Rd5 {[%emt 0:00:39]} a4 {[%emt 0:00:21]} 46. Ra5 {[%emt 0:00:07]} a3 {[%emt 0:00:23]} 47. Kg2 {[%emt 0:00:18]} Rc3 48. c5 {[%emt 0:00:31]} Kg7 {[%emt 0:00:43] [#]} 49. c6 $1 {[%emt 0:00:49]} Rxc6 {[%emt 0:00:02]} 50. Rxa3 $11 {[%emt 0:00:05]} Rc7 {[%emt 0:00:29]} 51. Ra6 {[%emt 0:00:17]} Rb7 {[%emt 0:00:15]} 52. Kg3 {[%emt 0:00:41]} Rc7 {[%emt 0:00:41]} 53. h3 {[%emt 0:00:52]} Rb7 {[%emt 0:00:04]} 1/2-1/2

[Event "Botvinnik Cup 2018"]
[Site "Moscow"]
[Date "2018.08.14"]
[Round "7"]
[White "Balabayeva, Xeniya"]
[Black "Sevdimaliyev, Urfan"]
[Result "1-0"]
[ECO "B34"]
[WhiteElo "1788"]
[BlackElo "2388"]
[Annotator "NA"]
[PlyCount "87"]
[EventDate "2018.08.10"]
[EventCountry "RUS"]
[SourceTitle "playchess.com"]
[Source "ChessBase"]
[SourceQuality "1"]
[TimeControl "5400+30"]

1. e4 {[%emt 0:00:00]} c5 {[%emt 0:00:00]} 2. Nf3 {[%emt 0:00:00]} Nc6 {[%emt 0:00:00]} 3. d4 {[%emt 0:00:00]} cxd4 {[%emt 0:00:00]} 4. Nxd4 {[%emt 0:00:00]} g6 {[%emt 0:00:16]} 5. Nc3 {[%emt 0:00:00]} Bg7 {[%emt 0:00:03]} 6. Be3 {[%emt 0:00:05]} Nf6 {[%emt 0:00:08]} 7. Nxc6 {[%emt 0:00:15]} bxc6 {[%emt 0:00:06]} 8. e5 {[%emt 0:00:28]} Ng8 {[%emt 0:00:15]} 9. Bd4 {[%emt 0:00:59]} f6 {[%emt 0:00:41]} 10. exf6 {[%emt 0:02:37] B34: Sizilianisch (Beschleunigtes Fianchetto)} Nxf6 {[%emt 0:00:30]} 11. Be2 {[%emt 0:02:10]} (11. Bc4 d5 12. Bb3 O-O 13. O-O Rb8 14. Bxa7 Rb4 15. f3 Ba6 16. Re1 Qd6 17. Bf2 Kh8 {0-1 (65) Sychev,K (2510)-Antipov,M (2588) Moscow 2017}) 11... O-O {[%emt 0:01:43]} 12. O-O {[%emt 0:01:26]} d6 {[%emt 0:00:48]} 13. f4 {[%emt 0:11:31]} Rb8 {[%emt 0:01:41]} 14. Rb1 $146 {[%emt 0:01:59]} ({Vorgänger:} 14. Nb1 Be6 15. Bf3 Bd5 16. Nd2 Rb4 17. Nb3 Bxf3 18. Rxf3 {½-½ (41) Amos,B-Baumbach,F Siegen 1970}) 14... c5 {[%emt 0:10:18]} 15. Bf2 {[%emt 0:02:16]} Rb4 {[%emt 0:04:18]} 16. Qd2 {[%emt 0:06:29]} Bh6 {[%emt 0:23:30]} 17. Be3 {[%emt 0:07:16]} Be6 {[%emt 0:03:24]} 18. a3 {[%emt 0:03:18]} Rb8 {[%emt 0:05:44]} 19. h3 {[%emt 0:10:33]} Qa5 {[%emt 0:01:40]} (19... Qc7 $14) 20. Bf3 {[%emt 0:04:05]} Rfd8 {[%emt 0:02:55]} 21. f5 {[%emt 0:02:02]} Bxe3+ {[%emt 0:02:50]} 22. Qxe3 {[%emt 0:00:03]} Bxf5 {[%emt 0:00:39]} 23. Qxe7 {[%emt 0:01:27]} Rf8 {[%emt 0:01:42]} 24. g4 {[%emt 0:16:13]} Rbe8 {[%emt 0:06:10]} 25. Qxd6 {[%emt 0:01:53]} Rd8 $1 {[%emt 0:02:18] [#]} 26. Qe5 {[%emt 0:03:05]} ({White should try} 26. Qh2 $1 $16 Be6 27. Rbe1) 26... Rde8 $1 {[%emt 0:03:49]} 27. Qd6 {[%emt 0:04:40]} Rd8 {[%emt 0:01:04]} 28. Qe5 {[%emt 0:02:10]} Rde8 {[%emt 0:01:05]} 29. Qd6 {[%emt 0:01:05]} Rd8 {[%emt 0:03:16] [#]} 30. Qc6 {[%emt 0:01:49]} Bxc2 {[%emt 0:02:47]} ({Black should play} 30... Bd7 $14 31. Qd6 Kh8) 31. Bd5+ {[%emt 0:08:40]} Nxd5 {[%emt 0:02:00]} 32. Rxf8+ {[%emt 0:00:32]} Rxf8 {[%emt 0:00:08]} 33. Qxd5+ {[%emt 0:00:10]} Kg7 {[%emt 0:01:57]} 34. Qe5+ {[%emt 0:01:29]} Kg8 {[%emt 0:00:14]} 35. Qe6+ {[%emt 0:01:24]} Kg7 $18 {[%emt 0:01:15] [#]} (35... Rf7 $16) 36. Rc1 $1 {[%emt 0:00:10]} Ba4 {[%emt 0:05:26]} 37. Qe5+ {[%emt 0:03:15]} Kg8 {[%emt 0:00:19]} 38. Qd5+ {[%emt 0:01:04]} Kg7 {[%emt 0:00:13]} 39. Re1 {[%emt 0:00:59]} Rf7 {[%emt 0:03:07]} 40. Re6 {[%emt 0:01:23]} Bd7 {[%emt 0:02:30]} 41. Rd6 {[%emt 0:00:53]} Qd8 {[%emt 0:01:38]} 42. Qe5+ {[%emt 0:00:18]} Kg8 {[%emt 0:00:10]} 43. Nd5 {[%emt 0:00:17]} Qh4 {[%emt 0:01:06]} 44. Nf6+ {[%emt 0:00:28]} 1-0

[Event "Botvinnik Cup 2018"]
[Site "Moscow"]
[Date "2018.08.14"]
[Round "7"]
[White "Annageldiyev, Azatgeldi"]
[Black "Egin, Vladimir"]
[Result "1-0"]
[ECO "D00"]
[WhiteElo "1727"]
[BlackElo "2317"]
[Annotator "NA"]
[PlyCount "107"]
[EventDate "2018.08.10"]
[EventCountry "RUS"]
[SourceTitle "playchess.com"]
[Source "ChessBase"]
[SourceQuality "1"]
[TimeControl "5400+30"]

1. d4 {[%emt 0:00:00]} d5 {[%emt 0:00:00]} 2. Bf4 {[%emt 0:00:00]} Nf6 {[%emt 0:00:00]} 3. e3 {[%emt 0:00:01]} c5 {[%emt 0:00:05]} 4. c3 {[%emt 0:00:05]} Nc6 {[%emt 0:00:05]} 5. Nd2 {[%emt 0:01:10]} Bf5 {[%emt 0:00:07]} 6. Ngf3 {[%emt 0:01:30]} e6 {[%emt 0:02:15]} 7. Ne5 {[%emt 0:02:47] D00: 1 d4 d5: Unusual lines} (7. Be2 Bd6 8. dxc5 Bxc5 9. Nd4 Bg6 10. Qa4 O-O 11. Nxc6 bxc6 12. Qxc6 Rc8 13. Qa4 Re8 14. O-O e5 {0-1 (57) Le,Q (2737)-Ding,L (2777) Riadh 2017}) 7... Nxe5 {[%emt 0:01:17]} 8. Bxe5 {[%emt 0:01:21]} Nd7 {[%emt 0:00:22]} 9. Nf3 {[%emt 0:01:40]} a6 {[%emt 0:02:47]} 10. Bg3 $146 {[%emt 0:06:48]} ({Predecessor:} 10. Bd3 Bxd3 11. Qxd3 Nxe5 12. Nxe5 Bd6 13. O-O O-O 14. Rfe1 f6 {½-½ (43) Ypma,J (1542)-Reichardt,R (1855) Assen 2017}) 10... Be7 {[%emt 0:00:08]} 11. Bd3 {[%emt 0:00:07]} Bxd3 {[%emt 0:00:16]} 12. Qxd3 {[%emt 0:00:01]} O-O {[%emt 0:00:09]} 13. h4 {[%emt 0:02:20]} f5 {[%emt 0:10:03]} 14. Qe2 {[%emt 0:06:52]} b5 {[%emt 0:00:50]} 15. Ne5 {[%emt 0:25:53]} Nxe5 {[%emt 0:00:57]} 16. Bxe5 {[%emt 0:00:01]} Bd6 {[%emt 0:00:30]} 17. Bf4 {[%emt 0:06:21]} cxd4 {[%emt 0:03:10]} 18. Bxd6 {[%emt 0:03:17]} d3 {[%emt 0:00:15]} 19. Qxd3 {[%emt 0:00:37]} Qxd6 {[%emt 0:00:02]} 20. O-O {[%emt 0:02:53]} Rac8 {[%emt 0:00:32]} 21. b3 {[%emt 0:05:13]} Rc5 {[%emt 0:06:24]} 22. Rfc1 {[%emt 0:08:05]} Rfc8 {[%emt 0:05:42]} 23. Rc2 {[%emt 0:00:55]} Qc6 {[%emt 0:04:14]} 24. Rac1 {[%emt 0:00:46]} b4 {[%emt 0:00:37]} 25. c4 {[%emt 0:00:44]} dxc4 {[%emt 0:07:36]} 26. Rxc4 {[%emt 0:07:44]} Qb6 {[%emt 0:11:25]} 27. Qd4 {[%emt 0:08:13]} Rxc4 {[%emt 0:02:21]} 28. Rxc4 {[%emt 0:00:11]} Qb7 {[%emt 0:00:49]} 29. Rxc8+ {[%emt 0:01:22]} Qxc8 {[%emt 0:00:33]} 30. Qxb4 {[%emt 0:00:02]} Qc1+ {[%emt 0:00:29]} 31. Kh2 {[%emt 0:00:01]} Qc2 {[%emt 0:00:55]} 32. Qe7 {[%emt 0:05:22]} h6 $2 {[%emt 0:01:32]} (32... Qc6 $16 {is a better defense.} 33. h5 h6) 33. Qxe6+ {[%emt 0:00:31]} Kh8 {[%emt 0:00:03]} 34. Kg3 {[%emt 0:01:17]} ({Much less strong is} 34. Qxa6 Qxf2 35. Qc4 Qxa2 $18) 34... Qc7+ {[%emt 0:00:36]} 35. Kf3 {[%emt 0:01:02]} Qc2 {[%emt 0:01:18]} 36. Qc4 {[%emt 0:01:35]} Qd1+ {[%emt 0:00:27]} 37. Kg3 {[%emt 0:00:18]} Qd6+ {[%emt 0:01:40]} 38. Kh3 {[%emt 0:00:19]} Kh7 {[%emt 0:00:20]} 39. b4 {[%emt 0:01:19]} Qd1 {[%emt 0:00:25]} 40. Qf4 {[%emt 0:00:41]} Qb1 {[%emt 0:00:47]} 41. a4 {[%emt 0:00:25]} Kg6 {[%emt 0:00:08]} 42. Qg3+ {[%emt 0:00:39]} Kh5 {[%emt 0:00:58]} 43. Qf3+ {[%emt 0:00:16]} Kg6 {[%emt 0:00:03]} 44. Qf4 {[%emt 0:00:31]} Qc2 {[%emt 0:03:05]} 45. b5 {[%emt 0:00:40]} axb5 {[%emt 0:00:02]} 46. axb5 {[%emt 0:00:06]} Qb1 {[%emt 0:00:02]} 47. h5+ {[%emt 0:00:54]} Kf6 {[%emt 0:01:06]} 48. Qd6+ {[%emt 0:00:15]} Kf7 {[%emt 0:00:04]} 49. b6 {[%emt 0:00:29]} Qh1+ {[%emt 0:00:08]} 50. Kg3 {[%emt 0:00:45]} Qxh5 {[%emt 0:00:02]} 51. b7 {[%emt 0:00:33]} g5 {[%emt 0:00:35]} 52. Qd5+ {[%emt 0:00:17]} Kf6 {[%emt 0:01:04]} 53. Qd4+ {[%emt 0:00:16]} Ke6 {[%emt 0:00:14]} 54. b8=Q {[%emt 0:00:37] Kd5} 1-0

[Event "Botvinnik Cup 2018"]
[Site "Moscow"]
[Date "2018.08.14"]
[Round "7"]
[White "Saryev, Azim"]
[Black "Egin, Vladimir"]
[Result "0-1"]
[ECO "D02"]
[WhiteElo "1586"]
[BlackElo "2317"]
[Annotator "NA"]
[PlyCount "60"]
[EventDate "2018.08.10"]
[EventCountry "RUS"]
[SourceTitle "playchess.com"]
[Source "ChessBase"]
[SourceQuality "1"]
[TimeControl "5400+30"]

1. d4 {[%emt 0:00:00]} d5 {[%emt 0:00:00]} 2. Nf3 {[%emt 0:00:00]} Nf6 {[%emt 0:00:00]} 3. Bf4 {[%emt 0:00:00]} c5 {[%emt 0:00:00]} 4. c3 {[%emt 0:01:45]} Qb6 {[%emt 0:00:37]} 5. Qb3 {[%emt 0:00:28]} Nc6 {[%emt 0:00:10]} 6. e3 {[%emt 0:02:03]} c4 {[%emt 0:00:20]} 7. Qxb6 {[%emt 0:00:06]} axb6 {[%emt 0:00:03]} 8. Na3 {[%emt 0:16:57]} Bf5 {[%emt 0:00:24]} 9. Nh4 {[%emt 0:10:13] D02: 1 d4 d5 2 Nf3 sidelines, including 2...Nf6 3 g3 and 2...Nf6 3 Bf4} (9. Nb5 Kd7 10. Be2 e6 11. O-O Ra5 12. a4 Bc2 13. Ng5 Bg6 14. Rfc1 Be7 15. Nf3 Rha8 16. Nc7 Rc8 {0-1 (35) Javakhishvili,L (2465)-Girya,O (2482) Tbilisi 2018}) 9... Bd7 {[%emt 0:02:26]} 10. Bc7 {[%emt 0:27:38]} e5 {[%emt 0:00:48]} 11. Nb5 {[%emt 0:06:50]} Nb4 $146 {[%emt 0:07:38]} ({Predecessor:} 11... Nxd4 12. exd4 Bxb5 13. dxe5 Ng4 14. Be2 Kd7 15. Bxb6 Nxe5 16. O-O Kc6 {1-0 (58) Sillye,K (2094)-Czegledi,L (2162) Hungary 2010}) 12. cxb4 {[%emt 0:20:50]} Bxb5 {[%emt 0:00:54]} 13. f3 {[%emt 0:00:47]} Bxb4+ {[%emt 0:00:44]} 14. Kf2 {[%emt 0:00:04]} exd4 {[%emt 0:00:26]} 15. exd4 {[%emt 0:00:03]} Bd7 {[%emt 0:04:00]} 16. g4 {[%emt 0:00:49]} b5 {[%emt 0:05:15]} 17. g5 {[%emt 0:06:07]} Ng8 {[%emt 0:03:04]} 18. a3 {[%emt 0:03:30]} Be7 {[%emt 0:03:17]} 19. f4 {[%emt 0:00:34]} h6 {[%emt 0:00:13]} 20. Nf3 {[%emt 0:00:14]} b4 {[%emt 0:05:01]} 21. Bg2 {[%emt 0:00:57]} bxa3 {[%emt 0:00:20]} 22. Rhe1 {[%emt 0:00:15]} Rc8 {[%emt 0:00:52]} 23. Bd6 {[%emt 0:00:37]} axb2 {[%emt 0:09:45]} 24. Rxe7+ {[%emt 0:00:25]} Nxe7 {[%emt 0:00:04]} 25. Re1 {[%emt 0:00:03]} Be6 {[%emt 0:00:07]} 26. g6 {[%emt 0:00:56]} Kd7 {[%emt 0:04:49]} 27. Ba3 {[%emt 0:00:22]} Nxg6 {[%emt 0:01:20]} 28. Bxb2 $19 {[%emt 0:00:46]} Nxf4 {[%emt 0:02:57]} 29. Ne5+ {[%emt 0:00:17]} Kc7 {[%emt 0:00:26]} 30. Rc1 {[%emt 0:00:37]} f6 {[%emt 0:02:33]} 0-1